bitfinex/quotes_SOLUSD_20240920
["timestamp","ask_amount","ask_price","bid_price","bid_amount"]
[1726852657847,15.3362,147.64,147.63,0.25098]
[1726852663685,6.1694,147.66,147.65,0.25098]
[1726852663879,16.2213,147.68,147.65,0.25098]
[1726852665381,16.2213,147.68,147.67,0.12549]
[1726852665559,6.4329559,147.7,147.67,0.25098]
[1726852666983,6.4329559,147.7,147.62,1.89338168]
[1726852666984,0.0659559,147.7,147.69,0.25098]
[1726852667677,0.0659559,147.7,147.69,24.027864]
[1726852669771,0.0659559,147.7,147.69,44.027864]
[1726852672385,0.2636489,147.75,147.74,47.18097762]
[1726852672560,0.2636489,147.75,147.74,67.18097762]
[1726852673171,0.2636489,147.75,147.74,43.40409362]
[1726852674677,0.2636489,147.75,147.7,23.15311362]
[1726852674861,8.45919902,147.77,147.7,23.15311362]
[1726852675064,0.2345257,147.75,147.7,23.15311362]
[1726852676079,0.2345257,147.75,147.68,25.06820728]
[1726852676393,0.2345257,147.75,147.7,23.15311362]
[1726852676693,0.2345257,147.75,147.68,23.15311362]
[1726852677377,0.2345257,147.75,147.7,23.15311362]
[1726852678261,0.2345257,147.75,147.71,0.12549]
[1726852680078,22.6922,147.74,147.68,23.15311362]
[1726852680276,24.38458775,147.74,147.68,23.15311362]
[1726852680581,22.6922,147.74,147.68,23.15311362]
[1726852680761,1.69238822,147.73,147.66,25.0621853]
[1726852680962,1.69238822,147.73,147.66,23.15311362]
[1726852681188,1.69238822,147.73,147.68,23.15311362]
[1726852681380,1.69238822,147.73,147.69,0.12549]
[1726852682480,1.69238822,147.73,147.66,23.15311362]
[1726852682680,1.69238822,147.73,147.67,0.25098]
[1726852688875,1.69238822,147.73,147.67,0.12549]
[1726852689391,1.69238822,147.73,147.66,23.15311362]
[1726852689392,1.69238822,147.73,147.64,23.15311362]
[1726852689595,6.2631,147.72,147.64,23.15311362]
[1726852689802,1.69284795,147.71,147.64,23.15311362]
[1726852689977,6.2368,147.69,147.62,23.15311362]
[1726852690174,1.69308411,147.68,147.6,23.15311362]
[1726852690494,15.5833,147.67,147.6,23.15311362]
[1726852690683,1.69332991,147.66,147.6,23.15311362]
[1726852691197,15.5833,147.67,147.6,23.15311362]
[1726852691406,15.5833,147.67,147.58,23.48820582]
[1726852691700,6.4737,147.65,147.58,23.48820582]
[1726852693302,6.4737,147.65,147.59,0.25098]
[1726852694786,6.4737,147.65,147.61,0.12549]
[1726852695803,6.4737,147.65,147.61,0.25098]
[1726852695984,6.4737,147.65,147.64,0.25098]
[1726852696176,15.5833,147.67,147.66,0.12549]
[1726852699203,15.5833,147.67,147.64,0.12549]
[1726852699379,15.5833,147.67,147.63,23.15311362]
[1726852699586,15.5833,147.67,147.64,0.12549]
[1726852706217,15.5833,147.67,147.61,23.15311362]
[1726852706505,1.69315982,147.66,147.59,25.02024397]
[1726852706688,6.5633,147.65,147.59,23.15311362]
[1726852706889,16.5595,147.63,147.58,0.3350922]
[1726852708179,16.5595,147.63,147.59,0.25098]
[1726852710408,1.69356534,147.62,147.58,0.3350922]
[1726852710615,18.25318683,147.63,147.58,0.3350922]
[1726852711119,16.5595,147.63,147.58,0.3350922]
[1726852711298,16.5595,147.63,147.59,0.12549]
[1726852711714,16.5595,147.63,147.59,0.25098]
[1726852716117,16.5595,147.63,147.59,23.40409362]
[1726852716334,16.5595,147.63,147.62,0.25098]
[1726852716620,6.5633,147.65,147.64,0.12549]
[1726852716824,15.2514,147.67,147.66,0.12549]
[1726852717524,6.0959,147.69,147.66,0.25098]
[1726852719111,6.0959,147.69,147.66,0.12549]
[1726852719304,6.0959,147.69,147.58,0.3350922]
[1726852719305,6.0959,147.69,147.63,23.15311362]
[1726852719698,6.0959,147.69,147.64,0.25098]
[1726852720915,6.0959,147.69,147.66,0.25098]
[1726852721299,6.0959,147.69,147.67,23.15311362]
[1726852721513,15.7757,147.71,147.68,0.12549]
[1726852722415,1.692593,147.7,147.66,0.12549]
[1726852722912,15.7757,147.71,147.64,23.15311362]
[1726852723497,17.46860075,147.71,147.64,23.15311362]
[1726852723699,15.7757,147.71,147.64,23.15311362]
[1726852723997,15.7757,147.71,147.67,0.25098]
[1726852724512,15.7757,147.71,147.69,23.15311362]
[1726852724712,6.1077,147.73,147.7,0.25098]
[1726852724924,6.1077,147.73,147.72,0.12549]
[1726852725216,6.1077,147.73,147.7,0.25098]
[1726852726708,0.2345257,147.74,147.72,0.25098]
[1726852726912,0.2345257,147.74,147.69,23.15311362]
[1726852727116,1.92657003,147.74,147.7,0.25098]
[1726852727700,1.92657003,147.74,147.68,0.25098]
[1726852729423,6.3547,147.73,147.67,0.12549]
[1726852729722,1.6926698,147.72,147.66,0.12549]
[1726852729903,15.1948,147.71,147.64,0.12549]
[1726852730110,1.69293081,147.7,147.63,0.12549]
[1726852730314,1.69293081,147.7,147.62,23.15311362]
[1726852730900,6.2685,147.69,147.62,23.15311362]
[1726852731206,1.69310329,147.68,147.62,23.15311362]
[1726852731597,1.69310329,147.68,147.6,23.15311362]
[1726852731819,15.0319,147.67,147.6,23.15311362]
[1726852732012,1.69336779,147.66,147.6,23.15311362]
[1726852733014,15.0319,147.67,147.6,23.15311362]
[1726852734217,15.0319,147.67,147.62,23.15311362]
[1726852735632,1.69318332,147.66,147.6,23.15311362]
[1726852736129,15.0319,147.67,147.6,23.15311362]
[1726852737429,15.0319,147.67,147.63,0.12549]
[1726852740926,15.0319,147.67,147.63,0.25098]
[1726852741119,15.0319,147.67,147.65,0.25098]
[1726852742206,6.2685,147.69,147.66,23.15311362]
[1726852742407,6.2685,147.69,147.67,0.12549]
[1726852742617,15.8715,147.71,147.68,23.15311362]
[1726852743328,15.8715,147.71,147.69,0.25098]
[1726852744012,6.0858,147.73,147.7,23.15311362]
[1726852744332,6.0858,147.73,147.69,0.25098]
[1726852744333,6.0858,147.73,147.69,0.12549]
[1726852744640,6.0858,147.73,147.69,0.25098]
[1726852745013,6.0858,147.73,147.68,23.15311362]
[1726852749025,6.0858,147.73,147.69,0.12549]
[1726852749336,6.0858,147.73,147.7,23.15311362]
[1726852749533,0.2345257,147.74,147.72,23.15311362]
[1726852750311,0.2345257,147.74,147.71,0.25098]
[1726852750808,0.2345257,147.74,147.68,23.15311362]
[1726852751007,0.2345257,147.74,147.69,0.25098]
[1726852751433,0.2345257,147.74,147.71,0.12549]
[1726852755436,0.2345257,147.74,147.71,0.25098]
[1726852756638,0.2345257,147.74,147.71,0.12549]
[1726852758231,0.2345257,147.74,147.72,23.15311362]
[1726852758617,0.2345257,147.74,147.73,0.12549]
[1726852759040,0.2345257,147.74,147.73,0.25098]
[1726852759628,0.2345257,147.74,147.7,23.15311362]
[1726852759826,0.2345257,147.74,147.71,0.12549]
[1726852760023,0.2345257,147.74,147.73,23.27860362]
[1726852760238,0.2345257,147.74,147.73,23.40409362]
[1726852760443,0.2345257,147.74,147.73,47.18097762]
[1726852764322,0.2345257,147.74,147.73,67.18097762]
[1726852768328,0.2345257,147.74,147.73,23.15311362]
[1726852768528,0.2345257,147.74,147.66,113.20101372]
[1726852768529,0.2345257,147.74,147.71,23.15311362]
[1726852769655,0.2345257,147.74,147.72,0.12549]
[1726852770932,0.2345257,147.74,147.72,0.25098]
[1726852771741,0.2345257,147.74,147.72,0.12549]
[1726852773151,0.2345257,147.74,147.71,23.15311362]
[1726852773152,0.2345257,147.74,147.7,20.12549]
[1726852773329,0.2345257,147.74,147.71,0.12549]
[1726852774552,0.2345257,147.74,147.7,20.0]
[1726852774926,21.9917,147.73,147.7,0.12549]
[1726852776257,1.69235368,147.72,147.65,23.15311362]
[1726852776555,1.69235368,147.72,147.57,256.5058]
[1726852776556,8.46205368,147.72,147.63,23.15311362]
[1726852776745,6.6071,147.7,147.61,23.15311362]
[1726852776945,1.69311805,147.69,147.61,23.15311362]
[1726852778159,1.69311805,147.69,147.62,0.25098]
[1726852778653,1.69311805,147.69,147.63,23.15311362]
[1726852778852,6.6071,147.7,147.64,0.12549]
[1726852779158,1.69299689,147.69,147.64,0.12549]
[1726852779650,6.6071,147.7,147.64,0.12549]
[1726852779855,8.30001193,147.7,147.65,23.15311362]
[1726852781071,1.69278236,147.69,147.64,0.12549]
[1726852781238,1.69278236,147.69,147.64,0.25098]
[1726852781940,1.69278236,147.69,147.64,0.12549]
[1726852782470,15.3794,147.68,147.59,23.15311362]
[1726852782636,1.69337606,147.67,147.59,23.15311362]
[1726852782839,6.4545,147.66,147.59,23.15311362]
[1726852783238,1.69338177,147.65,147.59,23.15311362]
[1726852783440,6.4545,147.66,147.59,23.15311362]
[1726852783655,6.4545,147.66,147.6,0.25098]
[1726852784650,6.4545,147.66,147.62,0.25098]
[1726852786461,1.69323132,147.65,147.61,23.15311362]
[1726852786765,1.69323132,147.65,147.6,0.25098]
[1726852789164,6.4545,147.66,147.59,25.15311362]
[1726852789661,6.4545,147.66,147.6,0.12549]
[1726852791576,6.4545,147.66,147.61,23.15311362]
[1726852791757,6.4545,147.66,147.62,0.25098]
[1726852794372,6.4545,147.66,147.64,0.12549]
[1726852795250,6.4545,147.66,147.64,0.25098]
[1726852796754,6.4545,147.66,147.65,23.40409362]
[1726852799978,15.3794,147.68,147.65,23.40409362]
[1726852800163,15.3794,147.68,147.66,0.12549]
[1726852800478,15.3794,147.68,147.67,23.40409362]
[1726852800863,15.3794,147.68,147.66,0.12549]
[1726852801165,17.07225297,147.68,147.62,43.902374]
[1726852801772,17.07225297,147.68,147.62,23.902374]
[1726852802076,15.3794,147.68,147.62,23.902374]
[1726852802670,15.3794,147.68,147.63,0.12549]
[1726852803178,1.69309716,147.67,147.63,0.12549]
[1726852803368,1.69309716,147.67,147.61,23.15311362]
[1726852803685,15.3794,147.68,147.61,23.15311362]
[1726852804552,15.3794,147.68,147.62,0.12549]
[1726852805251,15.3794,147.68,147.62,0.25098]
[1726852805451,15.3794,147.68,147.63,23.15311362]
[1726852805670,15.3794,147.68,147.66,0.12549]
[1726852806248,15.3794,147.68,147.63,23.15311362]
[1726852806461,15.3794,147.68,147.64,0.25098]
[1726852807187,1.69295842,147.67,147.64,0.12549]
[1726852807351,1.69295842,147.67,147.61,23.15311362]
[1726852807551,15.3794,147.68,147.64,23.15311362]
[1726852807768,15.3794,147.68,147.62,23.40409362]
[1726852807967,1.69301709,147.67,147.62,23.40409362]
[1726852808175,15.3794,147.68,147.62,23.40409362]
[1726852808353,15.3794,147.68,147.64,23.15311362]
[1726852810452,15.3794,147.68,147.62,23.40409362]
[1726852811754,15.3794,147.68,147.65,0.12549]
[1726852812078,15.3794,147.68,147.67,0.25098]
[1726852812379,0.2345257,147.74,147.69,0.25098]
[1726852812380,15.8827,147.73,147.69,0.25098]
[1726852813588,15.8827,147.73,147.69,0.12549]
[1726852813750,17.57517633,147.73,147.69,0.12549]
[1726852813953,17.57517633,147.73,147.66,23.15311362]
[1726852814154,17.57517633,147.73,147.67,0.12549]
[1726852814778,24.34447633,147.73,147.67,0.12549]
[1726852815358,24.34447633,147.73,147.66,23.15311362]
[1726852815562,24.34447633,147.73,147.65,0.25098]
[1726852816463,13.3451,147.71,147.64,23.15311362]
[1726852816774,21.9348,147.71,147.64,23.15311362]
[1726852817887,21.9348,147.71,147.65,0.12549]
[1726852824180,21.9348,147.71,147.65,0.25098]
[1726852824386,21.9348,147.71,147.67,23.15311362]
[1726852824690,21.9348,147.71,147.68,0.12549]
[1726852824982,21.9348,147.71,147.67,23.15311362]
[1726852827691,1.69265855,147.7,147.66,0.25098]
[1726852827877,1.69265855,147.7,147.66,0.12549]
[1726852828076,1.69265855,147.7,147.66,0.25098]
[1726852828490,1.69265855,147.7,147.63,23.15311362]
[1726852828988,8.46315855,147.7,147.63,23.15311362]
[1726852829179,6.7705,147.7,147.63,23.15311362]
[1726852829686,28.7049,147.71,147.63,23.15311362]
[1726852829866,21.9348,147.71,147.63,23.15311362]
[1726852830071,28.7048,147.71,147.64,0.25098]
[1726852830778,6.7704,147.7,147.63,23.15311362]
[1726852830977,1.69317581,147.69,147.63,23.15311362]
[1726852832268,23.029,147.68,147.61,23.15311362]
[1726852832570,22.6289,147.66,147.59,25.15311362]
[1726852832767,1.69361812,147.65,147.59,2.0]
[1726852833496,15.8565,147.63,147.57,23.15311362]
[1726852833673,1.69385493,147.62,147.57,23.15311362]
[1726852834490,1.69385493,147.62,147.56,0.1013327]
[1726852834796,6.1927,147.61,147.56,0.1013327]
[1726852835001,1.69412259,147.6,147.56,0.1013327]
[1726852835286,15.7459,147.59,147.56,0.1013327]
[1726852838392,15.7459,147.59,147.56,47.03133032]
[1726852838605,15.7459,147.59,147.57,20.0]
[1726852838887,15.7459,147.59,147.56,0.1013327]
[1726852839390,1.69410398,147.58,147.56,0.1013327]
[1726852839775,1.69410398,147.58,147.54,23.40401922]
[1726852839978,6.4357,147.57,147.52,23.15311362]
[1726852840187,8.1301225,147.57,147.52,23.15311362]
[1726852840699,6.4357,147.57,147.52,23.15311362]
[1726852840889,1.69442249,147.56,147.52,23.15311362]
[1726852841191,1.69442249,147.56,147.51,20.0]
[1726852841398,1.69458368,147.55,147.48,23.15311362]
[1726852841576,16.3783,147.54,147.47,0.1013327]
[1726852841972,16.3783,147.54,147.48,23.15311362]
[1726852842483,1.69477231,147.53,147.48,23.15311362]
[1726852843890,6.5947,147.52,147.47,20.1013327]
[1726852844188,1.69494253,147.51,147.47,20.1013327]
[1726852844371,6.5947,147.52,147.47,20.1013327]
[1726852844794,1.69492899,147.51,147.47,20.1013327]
[1726852845174,16.24,147.5,147.47,0.1013327]
[1726852845380,16.24,147.5,147.44,0.2674759]
[1726852845381,12.9517,147.48,147.44,0.2674759]
[1726852845601,8.47660245,147.47,147.4,0.333804]
[1726852845775,8.47660245,147.47,147.38,1.28194911]
[1726852845776,15.7292,147.46,147.38,1.28194911]
[1726852846107,6.1711,147.44,147.38,0.1013327]
[1726852846305,17.42542747,147.43,147.38,0.1013327]
[1726852846481,24.20842747,147.43,147.38,0.1013327]
[1726852846679,15.7292,147.43,147.38,0.1013327]
[1726852846885,1.69611559,147.42,147.38,0.1013327]
[1726852847081,1.69611119,147.42,147.38,0.1013327]
[1726852847580,15.7292,147.43,147.39,23.15311362]
[1726852850084,15.7292,147.43,147.41,23.15311362]
[1726852851699,6.1711,147.44,147.43,23.15311362]
[1726852853200,16.5561,147.46,147.45,23.15311362]
[1726852853401,16.5561,147.46,147.43,23.15311362]
[1726852854687,16.5561,147.46,147.42,20.12549]
[1726852855002,16.5561,147.46,147.42,20.0]
[1726852855186,16.5561,147.46,147.41,23.15311362]
[1726852855187,1.69556148,147.45,147.41,23.15311362]
[1726852855390,1.69584076,147.44,147.39,23.15311362]
[1726852856507,16.5561,147.46,147.39,23.15311362]
[1726852858080,1.69592112,147.45,147.39,23.15311362]
[1726852858503,16.5561,147.46,147.39,23.15311362]
[1726852859407,1.6959231,147.45,147.39,23.15311362]
[1726852859986,6.4012,147.44,147.39,23.15311362]
[1726852860200,1.69609022,147.43,147.39,23.15311362]
[1726852860601,15.5046,147.42,147.38,0.1013327]
[1726852861111,1.69637217,147.41,147.35,23.41911092]
[1726852862608,15.5046,147.42,147.37,23.15311362]
[1726852863107,15.5046,147.42,147.39,23.15311362]
[1726852865311,15.5046,147.42,147.36,0.12549]
[1726852865312,15.5046,147.42,147.37,23.15311362]
[1726852865506,15.5046,147.42,147.39,23.15311362]
[1726852865904,15.5046,147.42,147.37,23.15311362]
[1726852866214,1.69605704,147.41,147.37,23.15311362]
[1726852866713,15.5046,147.42,147.37,23.15311362]
[1726852867786,15.5046,147.42,147.39,23.15311362]
[1726852869308,15.5046,147.42,147.41,23.15311362]
[1726852869509,6.4012,147.44,147.41,23.15311362]
[1726852869689,6.4012,147.44,147.43,23.15311362]
[1726852870308,6.4012,147.44,147.41,23.15311362]
[1726852871011,6.4012,147.44,147.43,23.15311362]
[1726852871307,6.4012,147.44,147.41,23.15311362]
[1726852873395,6.4012,147.44,147.43,23.15311362]
[1726852873582,16.1071,147.46,147.43,23.15311362]
[1726852873786,6.1298,147.48,147.45,23.15311362]
[1726852874003,6.1298,147.48,147.47,23.15311362]
[1726852874212,16.2907,147.5,147.47,23.15311362]
[1726852875795,1.69510148,147.49,147.45,23.15311362]
[1726852876191,1.69510148,147.49,147.43,23.15311362]
[1726852876715,16.2907,147.5,147.45,23.15311362]
[1726852876893,1.69546702,147.49,147.45,23.15311362]
[1726852877987,1.69546702,147.49,147.43,23.15311362]
[1726852878590,16.2907,147.5,147.43,23.15311362]
[1726852879104,16.2907,147.5,147.45,23.15311362]
[1726852879414,1.69546657,147.49,147.45,23.15311362]
[1726852879595,16.2907,147.5,147.45,23.15311362]
[1726852880199,16.2907,147.5,147.47,23.15311362]
[1726852882696,16.2907,147.5,147.45,23.15311362]
[1726852882899,1.69516042,147.49,147.45,23.15311362]
[1726852883093,16.2907,147.5,147.45,23.15311362]
[1726852884019,1.69526148,147.49,147.45,23.15311362]
[1726852884323,16.2907,147.5,147.45,23.15311362]
[1726852885616,1.69530786,147.49,147.45,23.15311362]
[1726852885808,16.2907,147.5,147.45,23.15311362]
[1726852887497,1.69530835,147.49,147.45,23.15311362]
[1726852888504,16.2907,147.5,147.46,0.12549]
[1726852888707,16.2907,147.5,147.47,23.15311362]
[1726852888916,6.8531973,147.52,147.51,23.15311362]
[1726852889619,6.8531973,147.52,147.49,23.15311362]
[1726852892016,6.8531973,147.52,147.47,23.15311362]
[1726852893325,1.69503624,147.51,147.45,23.15311362]
[1726852893508,16.089,147.5,147.45,23.15311362]
[1726852893712,1.69530327,147.49,147.45,23.15311362]
[1726852894518,16.089,147.5,147.45,23.15311362]
[1726852895224,16.089,147.5,147.47,23.15311362]
[1726852899220,16.089,147.5,147.49,23.15311362]
[1726852899911,16.089,147.5,147.47,23.15311362]
[1726852905907,16.089,147.5,147.42,69.69657321]
[1726852905908,16.089,147.5,147.49,23.15311362]
[1726852906113,6.8531973,147.52,147.51,23.15311362]
[1726852906718,0.2659973,147.52,147.51,47.05548762]
[1726852906913,0.2659973,147.52,147.51,67.05548762]
[1726852907332,16.0625,147.54,147.53,23.15311362]
[1726852907539,16.2832478,147.54,147.53,23.15311362]
[1726852909131,16.2832478,147.54,147.51,43.902374]
[1726852909132,16.2832478,147.54,147.51,23.15311362]
[1726852912849,16.2832478,147.54,147.53,23.15311362]
[1726852913020,0.2207478,147.54,147.53,23.27860362]
[1726852914444,0.2501115,147.55,147.54,44.027864]
[1726852914917,0.2501115,147.55,147.54,20.12549]
[1726852916716,0.2501115,147.55,147.54,44.027864]
[1726852918547,0.2501115,147.55,147.54,23.902374]
[1726852918843,0.2501115,147.55,147.53,23.15311362]
[1726852921059,6.7583115,147.55,147.53,23.15311362]
[1726852921727,1.69453507,147.54,147.51,23.15311362]
[1726852921948,1.69453507,147.54,147.49,23.15311362]
[1726852922129,15.7831,147.53,147.49,23.15311362]
[1726852922329,1.69483663,147.52,147.47,23.15311362]
[1726852922753,22.5614,147.53,147.47,23.15311362]
[1726852923434,6.4354,147.51,147.45,23.15311362]
[1726852924239,1.69528138,147.5,147.45,23.15311362]
[1726852924748,6.4354,147.51,147.45,23.15311362]
[1726852925254,1.6953153,147.5,147.43,23.15311362]
[1726852925438,15.6107,147.49,147.43,23.15311362]
[1726852926256,15.6107,147.49,147.45,23.15311362]
[1726852926629,15.6107,147.49,147.43,0.12549]
[1726852926850,1.69553174,147.48,147.42,23.15311362]
[1726852927054,6.7806,147.48,147.42,23.15311362]
[1726852927365,6.7818,147.46,147.4,23.15311362]
[1726852927542,15.3294,147.44,147.39,0.2501115]
[1726852927856,15.3294,147.44,147.4,23.15311362]
[1726852929155,15.3294,147.44,147.36,69.72495129]
[1726852929156,8.31466609,147.43,147.36,69.72495129]
[1726852929332,6.7839,147.41,147.35,0.2501115]
[1726852929531,1.69659394,147.4,147.35,0.2501115]
[1726852929727,6.7848,147.39,147.35,0.2501115]
[1726852929955,1.69670795,147.38,147.35,0.2501115]
[1726852930533,1.69670795,147.38,147.32,23.15311362]
[1726852930534,6.6188,147.37,147.32,23.15311362]
[1726852935863,6.6188,147.37,147.34,23.15311362]
[1726852936463,1.69665662,147.36,147.32,23.15311362]
[1726852936854,1.69665662,147.36,147.31,23.59652182]
[1726852937061,16.3188,147.36,147.31,23.47103182]
[1726852938653,23.1049,147.36,147.31,0.3179182]
[1726852938941,6.7872,147.34,147.29,0.1013327]
[1726852939144,6.7872,147.34,147.27,23.15311362]
[1726852939145,6.7872,147.34,147.28,0.1449801]
[1726852939753,22.1729,147.32,147.27,23.15311362]
[1726852939961,1.69752248,147.31,147.27,23.15311362]
[1726852941060,1.69752248,147.31,147.25,23.15311362]
[1726852942044,15.385,147.32,147.25,23.15311362]
[1726852942640,15.385,147.32,147.27,23.15311362]
[1726852942961,17.0824154,147.32,147.28,0.12549]
[1726852943162,17.0824154,147.32,147.27,23.15311362]
[1726852943753,17.0824154,147.32,147.26,0.12549]
[1726852943948,15.385,147.32,147.27,23.15311362]
[1726852944261,15.385,147.32,147.26,0.12549]
[1726852944852,15.385,147.32,147.27,23.15311362]
[1726852945047,15.385,147.32,147.29,23.15311362]
[1726852945371,1.6971704,147.31,147.27,23.15311362]
[1726852945756,15.385,147.32,147.27,23.15311362]
[1726852947447,15.385,147.32,147.29,23.15311362]
[1726852947669,17.08221919,147.32,147.28,0.12549]
[1726852948142,17.08221919,147.32,147.27,23.15311362]
[1726852948341,15.385,147.32,147.27,23.15311362]
[1726852948754,1.69740991,147.31,147.27,23.15311362]
[1726852948961,8.48610991,147.31,147.25,23.15311362]
[1726852949361,1.69740991,147.31,147.25,23.15311362]
[1726852949567,22.173,147.32,147.25,23.15311362]
[1726852950277,1.69763389,147.31,147.25,23.15311362]
[1726852952276,15.385,147.32,147.25,23.15311362]
[1726852952654,23.902374,147.31,147.23,23.15311362]
[1726852952859,23.902374,147.31,147.24,20.0]
[1726852953381,23.902374,147.31,147.22,20.3701721]
[1726852953382,15.7574,147.29,147.22,20.3701721]
[1726852953560,1.69810224,147.28,147.22,0.3701721]
[1726852953755,15.7574,147.29,147.22,0.3701721]
[1726852954375,1.6980653,147.28,147.22,0.3701721]
[1726852954969,15.7574,147.29,147.22,0.3701721]
[1726852955171,1.6980643,147.28,147.22,0.3701721]
[1726852955355,15.7574,147.29,147.22,0.3701721]
[1726852955977,23.902374,147.28,147.22,0.3701721]
[1726852956284,15.7574,147.29,147.22,0.3701721]
[1726852956786,22.78672143,147.29,147.22,0.3701721]
[1726852958270,29.57602143,147.29,147.22,0.3701721]
[1726852958482,22.78672143,147.29,147.22,0.3701721]
[1726852958978,23.776884,147.28,147.22,0.3701721]
[1726852959783,22.78672143,147.29,147.22,0.3701721]
[1726852960076,1.69806987,147.28,147.22,0.3701721]
[1726852960280,22.78672143,147.29,147.22,0.3701721]
[1726852961485,1.69800441,147.28,147.22,0.3701721]
[1726852961860,23.902374,147.28,147.22,0.3701721]
[1726852963877,22.78672143,147.29,147.23,23.15311362]
[1726852964086,22.78672143,147.29,147.22,0.3701721]
[1726852965374,1.69800723,147.28,147.22,0.3701721]
[1726852966074,23.902374,147.28,147.22,0.3701721]
[1726852966285,22.78672143,147.29,147.22,0.3701721]
[1726852968095,22.78672143,147.29,147.23,23.15311362]
[1726852968298,15.7574,147.29,147.23,23.15311362]
[1726852969390,15.7574,147.29,147.25,23.15311362]
[1726852971379,15.7574,147.29,147.23,23.15311362]
[1726852971781,1.69768435,147.28,147.23,23.15311362]
[1726852971993,1.69768435,147.28,147.22,13.26140373]
[1726852972191,1.69808034,147.27,147.22,0.3701721]
[1726852973277,15.7574,147.29,147.22,0.3701721]
[1726852973972,1.69813442,147.28,147.22,0.3701721]
[1726852975067,23.902374,147.28,147.22,0.3701721]
[1726852975492,15.7574,147.29,147.22,0.3701721]
[1726852979991,1.69804642,147.28,147.22,0.3701721]
[1726852981292,23.902374,147.28,147.22,0.3701721]
[1726852981679,22.78581531,147.29,147.22,0.3701721]
[1726852981880,22.78581531,147.29,147.25,23.15311362]
[1726852982080,15.7574,147.29,147.25,23.15311362]
[1726852984691,6.5381,147.3,147.25,23.15311362]
[1726852985698,16.1064,147.32,147.27,23.15311362]
[1726852985896,6.4986,147.34,147.29,23.15311362]
[1726852986305,15.2398,147.36,147.31,23.15311362]
[1726852986817,15.2398,147.36,147.27,20.14944894]
[1726852986818,1.69695873,147.35,147.3,0.12549]
[1726852987104,15.2398,147.36,147.29,23.15311362]
[1726852987900,15.2398,147.36,147.31,23.15311362]
[1726852988792,1.69695788,147.35,147.29,2.0]
[1726852989002,15.2398,147.36,147.31,23.15311362]
[1726852989192,1.69698065,147.35,147.29,25.15311362]
[1726852989391,1.69698065,147.35,147.31,23.15311362]
[1726852989779,15.2398,147.36,147.31,23.15311362]
[1726852990192,15.2398,147.36,147.29,25.15311362]
[1726852990585,30.688974,147.35,147.29,2.0]
[1726852990794,23.902374,147.35,147.29,2.0]
[1726852990996,30.689074,147.35,147.29,2.0]
[1726852991305,23.902374,147.35,147.29,2.0]
[1726852992000,15.2398,147.36,147.29,25.15311362]
[1726852994411,15.2398,147.36,147.29,25.15311362]
[1726852994915,15.2398,147.36,147.29,2.0]
[1726852995291,15.2398,147.36,147.29,25.15311362]
[1726852995627,15.2398,147.36,147.29,2.0]
[1726852995915,25.59957927,147.35,147.29,2.0]
[1726852996101,6.0609,147.34,147.29,2.0]
[1726852996296,1.69739876,147.33,147.29,2.0]
[1726852998898,6.0609,147.34,147.29,2.0]
[1726852999298,6.0609,147.34,147.29,25.15311362]
[1726852999596,6.0609,147.34,147.29,2.0]
[1726853002614,1.6973232,147.33,147.29,2.0]
[1726853003995,15.5383,147.31,147.29,2.0]
[1726853004198,1.69777668,147.3,147.29,2.0]
[1726853004397,15.5383,147.31,147.29,2.0]
[1726853004588,17.23604152,147.31,147.29,2.0]
[1726853005398,0.12549,147.3,147.29,2.0]
[1726853005601,6.7893,147.29,147.25,0.152892]
[1726853005801,37.311574,147.3,147.25,0.152892]
[1726853006918,17.23641758,147.29,147.25,0.152892]
[1726853007213,24.28123634,147.29,147.25,0.152892]
[1726853007606,23.902374,147.28,147.25,0.152892]
[1726853007803,1.69824568,147.27,147.25,0.152892]
[1726853008805,0.12549,147.27,147.25,0.152892]
[1726853009011,23.902374,147.27,147.25,0.152892]
[1726853010817,32.11593124,147.26,147.25,0.152892]
[1726853011209,38.90663124,147.26,147.25,0.152892]
[1726853011406,30.417574,147.26,147.25,0.152892]
[1726853011917,38.90676825,147.26,147.25,0.152892]
[1726853012304,6.7916,147.24,147.23,0.0678067]
[1726853012619,25.6010389,147.24,147.23,0.0678067]
[1726853012809,32.3926389,147.24,147.23,0.0678067]
[1726853013614,30.819464,147.24,147.23,0.0678067]
[1726853013805,24.027864,147.24,147.23,0.0678067]
[1726853014218,23.902374,147.24,147.23,0.0678067]
[1726853014517,1.69856537,147.24,147.23,0.0678067]